bitfinex-derivatives/quotes_SOLF0:USTF0_20251117
["timestamp","ask_amount","ask_price","bid_price","bid_amount"]
[1763375275267,4.07045399,142.27,142.25,0.04472354]
[1763375277271,2.12,142.26,142.25,0.04472354]
[1763375280986,1.95045399,142.27,142.25,3.13472354]
[1763375284785,2.12,142.26,142.25,0.04472354]
[1763375284982,2.12,142.26,142.22,3.09]
[1763375285181,1.95045399,142.23,142.22,3.09]
[1763375287782,1.95045399,142.23,142.21,0.04746255]
[1763375288092,2.12,142.22,142.21,0.04746255]
[1763375288488,1.95045399,142.23,142.21,3.13746255]
[1763375289081,4.07045399,142.23,142.21,3.13746255]
[1763375289285,4.07045399,142.23,142.21,0.04746255]
[1763375290093,2.12,142.22,142.16,3.09]
[1763375290286,2.12,142.19,142.16,3.09]
[1763375290682,4.07045399,142.2,142.16,3.09]
[1763375291085,4.07045399,142.2,142.17,3.13658347]
[1763375291086,0.04532594,142.19,142.17,3.13658347]
[1763375295989,0.04532594,142.19,142.18,3.09]
[1763375300400,0.04532594,142.19,142.17,3.13658347]
[1763375308805,2.15532594,142.19,142.17,3.13658347]
[1763375309015,2.15532594,142.19,142.17,0.04658347]
[1763375311313,4.10577993,142.19,142.17,0.04658347]
[1763375311506,2.11,142.18,142.12,3.04]
[1763375312412,2.11,142.16,142.12,3.04]
[1763375312622,2.15551503,142.15,142.14,0.04752627]
[1763375313023,4.10596902,142.15,142.14,0.04752627]
[1763375313326,2.15551503,142.15,142.14,0.04752627]
[1763375322327,4.10596902,142.15,142.14,0.04752627]
[1763375322529,2.11,142.14,142.07,3.04]
[1763375322730,2.11,142.1,142.05,3.04]
[1763375323530,2.11,142.08,142.06,0.04721182]
[1763375325036,4.06045399,142.07,142.06,0.04721182]
[1763375326928,2.11,142.07,142.06,0.04721182]
[1763375330432,2.11,142.07,142.0,3.04]
[1763375331438,0.05028569,142.05,142.02,0.05259295]
[1763375331642,2.17028569,142.05,142.02,3.15259295]
[1763375337238,2.17028569,142.05,142.02,0.05259295]
[1763375340744,2.12,142.04,141.95,3.1]
[1763375341741,2.12,142.0,141.98,0.0446377]
[1763375343264,2.12,141.99,141.89,3.1]
[1763375343749,2.12,141.97,141.89,3.1]
[1763375344451,2.12,141.93,141.92,0.0531819]
[1763375345246,2.12,141.93,141.86,3.1]
[1763375346257,2.12,141.9,141.88,0.04672928]
[1763375347852,2.12,141.9,141.83,3.1]
[1763375348053,2.12,141.88,141.81,3.1]
[1763375348956,3.05715754,141.91,141.83,0.05278365]
[1763375348957,2.17343161,141.86,141.83,0.05278365]
[1763375350250,2.17343161,141.86,141.83,3.15278365]
[1763375350853,0.05343161,141.86,141.83,3.15278365]
[1763375351051,0.05343161,141.86,141.84,3.1]
[1763375351452,0.05343161,141.86,141.85,3.1]
[1763375354556,2.12,141.91,141.86,3.1]
[1763375355253,2.12,141.94,141.87,3.1]
[1763375355664,0.0447927,141.92,141.9,3.1]
[1763375356055,2.1647927,141.92,141.89,0.04720336]
[1763375356364,2.1647927,141.92,141.89,3.14720336]
[1763375356662,2.1647927,141.92,141.89,0.04720336]
[1763375360167,2.1647927,141.92,141.89,3.25720336]
[1763375361774,0.0447927,141.92,141.89,3.25720336]
[1763375364060,0.0447927,141.92,141.89,6.3143609]
[1763375364263,0.0447927,141.92,141.9,3.22]
[1763375371266,0.0447927,141.92,141.9,9.40485754]
[1763375371573,0.0447927,141.92,141.91,3.22]
[1763375371774,9.164,141.98,141.92,3.22]
[1763375372779,2.17317824,141.96,141.94,0.04607293]
[1763375373678,2.17317824,141.96,141.9,3.22]
[1763375374576,2.17317824,141.96,141.92,0.044583]
[1763375386787,1.9600651,141.94,141.92,0.044583]
[1763375386983,2.12,141.93,141.92,0.044583]
[1763375405599,2.12,141.94,141.92,3.174583]
[1763375405788,8.68949706,141.95,141.92,3.174583]
[1763375405989,2.12,141.94,141.92,3.174583]
[1763375406196,0.05317824,141.96,141.92,3.174583]
[1763375406401,2.17317824,141.96,141.92,3.174583]
[1763375407496,0.05317824,141.96,141.94,3.13]
[1763375408300,2.17317824,141.96,141.92,3.174583]
[1763375409600,2.12,141.95,141.92,0.044583]
[1763375409798,1.9600651,141.94,141.92,0.044583]
[1763375410103,2.12,141.93,141.92,0.044583]
[1763375410294,2.12,141.95,141.92,0.044583]
[1763375410695,2.12,141.95,141.92,3.174583]
[1763375412997,2.01324334,141.96,141.92,3.174583]
[1763375412998,0.05317824,141.96,141.92,3.174583]
[1763375415301,0.05317824,141.96,141.94,3.13]
[1763375419205,2.17317824,141.96,141.94,3.13]
[1763375419407,2.17317824,141.96,141.92,3.144583]
[1763375422600,0.05317824,141.96,141.92,3.144583]
[1763375423106,2.17317824,141.96,141.92,3.144583]
[1763375425606,2.12,141.93,141.92,0.044583]
[1763375426306,2.12,141.92,141.85,6.59542048]
[1763375426502,4.0800651,141.88,141.86,3.16]
[1763375426704,2.12,141.9,141.86,3.16]
[1763375426907,1.9600651,141.91,141.86,3.16]
[1763375427411,0.0522208,141.9,141.88,3.16]
[1763375427615,0.0522208,141.9,141.87,0.04736999]
[1763375427616,2.1722208,141.9,141.87,0.04736999]
[1763375428313,2.1722208,141.9,141.87,3.20736999]
[1763375429012,0.0522208,141.9,141.87,3.20736999]
[1763375429313,0.0522208,141.9,141.89,3.16]
[1763375430007,2.12,141.96,141.9,3.16]
[1763375430215,2.12,141.96,141.91,1.9600651]
[1763375430514,2.12,141.96,141.89,5.1200651]
[1763375431011,2.17183127,141.94,141.91,0.04475581]
[1763375431207,2.17183127,141.94,141.91,3.20475581]
[1763375431402,2.17183127,141.94,141.91,0.04475581]
[1763375431603,2.17183127,141.94,141.91,3.20475581]
[1763375432212,2.17183127,141.94,141.91,0.04475581]
[1763375433011,0.05183127,141.94,141.91,3.20475581]
[1763375433212,0.05183127,141.94,141.93,5.1200651]
[1763375433619,2.12,141.99,141.94,3.16]
[1763375434118,2.12,141.99,141.95,1.9600651]
[1763375434419,2.12,141.99,141.96,3.16]
[1763375434613,2.17299349,141.99,141.96,3.21038168]
[1763375436219,0.05299349,141.99,141.96,3.21038168]
[1763375436821,0.05299349,141.99,141.96,5.17044678]
[1763375437016,0.05299349,141.99,141.97,3.16]
[1763375437520,2.17299349,141.99,141.96,5.17044678]
[1763375437722,2.17299349,141.99,141.96,0.05038168]
[1763375437918,2.17299349,141.99,141.96,3.21038168]
[1763375440714,2.17299349,141.99,141.96,0.05038168]
[1763375441018,2.12,141.97,141.96,0.05038168]
[1763375445926,2.12,141.97,141.92,3.16]
[1763375446123,2.12,141.97,141.9,5.1200651]
[1763375446923,2.12,141.94,141.92,0.05069386]
[1763375460134,2.12,141.94,141.92,3.41069386]
[1763375460435,0.05065642,141.95,141.92,3.41069386]
[1763375461738,2.17065642,141.95,141.92,3.41069386]
[1763375462641,0.05065642,141.95,141.92,3.41069386]
[1763375462829,2.17065642,141.95,141.92,3.41069386]
[1763375470546,2.17065642,141.95,141.92,0.05069386]
[1763375477155,2.17065642,141.95,141.92,3.41069386]
[1763375478740,2.17065642,141.95,141.92,0.05069386]
[1763375480155,2.17065642,141.95,141.86,3.28]
[1763375480156,2.11,141.92,141.86,3.28]
[1763375480548,2.11,141.89,141.86,3.28]
[1763375481048,2.1642248,141.89,141.86,0.049635]
[1763375485062,2.1642248,141.89,141.86,3.239635]
[1763375485754,0.0542248,141.89,141.86,3.239635]
[1763375486157,0.0542248,141.89,141.87,3.19]
[1763375486464,2.12,141.95,141.87,3.19]
[1763375486667,2.12,141.95,141.88,3.19]
[1763375487679,2.17224029,141.93,141.91,3.19]
[1763375488363,2.17224029,141.93,141.9,3.24273021]
[1763375489572,2.17224029,141.93,141.9,0.05273021]
[1763375497773,0.05224029,141.93,141.9,3.24273021]
[1763375497976,2.17224029,141.93,141.9,3.24273021]
[1763375498369,0.05224029,141.93,141.9,3.24273021]
[1763375500072,0.05224029,141.93,141.91,3.19]
[1763375508876,0.05224029,141.93,141.91,5.14869257]
[1763375509183,0.05224029,141.93,141.92,3.19]
[1763375512483,2.12,141.98,141.92,3.19]
[1763375513381,2.12,141.98,141.93,3.17]
[1763375513587,0.04805835,141.96,141.95,3.17]
[1763375517583,0.04805835,141.96,141.94,0.04967741]
[1763375517584,2.15805835,141.96,141.94,0.04967741]
[1763375517788,2.15805835,141.96,141.94,3.21967741]
[1763375518493,2.15805835,141.96,141.94,0.04967741]
[1763375521299,0.04805835,141.96,141.94,3.21967741]
[1763375521897,1.95869257,142.01,141.95,3.17]
[1763375522101,2.11,142.02,141.97,3.17]
[1763375522795,1.95869257,142.03,141.98,0.04786319]
[1763375522796,2.16245795,142.01,141.98,0.04786319]
[1763375523002,4.12115052,142.01,141.98,0.04786319]
[1763375523386,2.11,142.0,141.98,0.04786319]
[1763375524593,2.01115052,142.01,141.98,3.21786319]
[1763375524893,4.12115052,142.01,141.98,3.21786319]
[1763375526703,2.16245795,142.01,141.98,3.21786319]
[1763375527204,0.05245795,142.01,141.98,3.21786319]
[1763375527392,2.16245795,142.01,141.98,3.21786319]
[1763375528205,0.05245795,142.01,141.98,3.21786319]
[1763375528507,1.95869257,142.07,142.0,1.95869257]
[1763375528704,1.95869257,142.07,142.01,3.17]
[1763375529108,2.11,142.09,142.02,3.17]
[1763375529307,2.11,142.09,142.04,3.17]
[1763375529510,2.11,142.09,142.03,1.95869257]
[1763375529511,2.15567714,142.08,142.05,3.21492088]
[1763375529698,2.15567714,142.08,142.05,0.04492088]
[1763375530402,0.04567714,142.08,142.05,3.21492088]
[1763375530602,0.04567714,142.08,142.06,3.17]
[1763375535000,0.04567714,142.08,142.06,5.12869257]
[1763375535305,2.11,142.13,142.07,3.17]
[1763375535606,2.11,142.13,142.09,3.17]
[1763375536213,0.05047062,142.12,142.1,3.21470202]
[1763375536815,0.05047062,142.12,142.1,5.17339459]
[1763375536999,0.05047062,142.12,142.1,3.21470202]
[1763375540915,2.16047062,142.12,142.1,0.04470202]
[1763375542510,4.06869257,142.11,142.1,0.04470202]
[1763375546417,4.06869257,142.11,142.05,3.25]
[1763375546418,2.11,142.1,142.05,3.25]
[1763375546723,2.11,142.08,142.05,3.25]
[1763375547615,2.16374807,142.08,142.05,3.29807855]
[1763375549623,0.05374807,142.08,142.05,3.29807855]
[1763375549826,0.05374807,142.08,142.07,3.25]
[1763375550517,0.00374807,142.08,142.07,3.25]
[1763375550717,0.00374807,142.08,142.07,4.65]
[1763375554825,0.00374807,142.08,142.07,3.25]
[1763375555625,0.00374807,142.08,142.07,4.65]
[1763375556125,0.00374807,142.08,142.07,10.9901]
[1763375557724,0.00374807,142.08,142.07,4.65]
[1763375558624,0.00374807,142.08,142.07,3.25]
[1763375575136,2.16374807,142.08,142.05,3.16807855]
[1763375577038,0.00374807,142.08,142.05,3.16807855]
[1763375578439,0.00374807,142.08,142.06,3.12]
[1763375584840,0.00374807,142.08,142.05,0.04807855]
[1763375588345,2.16,142.07,142.05,0.04807855]
[1763375590640,0.00374807,142.08,142.05,3.16807855]
[1763375591146,0.00374807,142.08,142.06,3.12]
[1763375592544,0.00374807,142.08,142.07,3.12]
[1763375599354,0.00374807,142.08,142.05,3.27807855]
[1763375606074,0.00374807,142.08,142.05,9.61907855]
[1763375606271,0.00374807,142.08,142.06,3.07]
[1763375618786,0.00374807,142.08,142.07,3.07]
[1763375620588,0.00374807,142.08,142.07,6.59542048]
[1763375620788,0.00374807,142.08,142.06,12.93582048]
[1763375621186,0.00374807,142.08,142.07,3.07]
[1763375621980,0.00374807,142.08,142.06,12.93582048]
[1763375622182,2.14,142.17,142.09,6.3389]
[1763375622386,2.14,142.17,142.09,15.97690372]
[1763375622694,2.14,142.17,142.1,3.07]
[1763375623383,0.04835444,142.15,142.13,3.07]
[1763375630906,0.04835444,142.15,142.12,0.04953495]
[1763375630907,2.18835444,142.15,142.12,0.04953495]
[1763375631106,2.18835444,142.15,142.12,3.11953495]
[1763375632102,0.04835444,142.15,142.12,3.11953495]
[1763375632494,2.20835444,142.15,142.12,3.11953495]
[1763375636808,0.04835444,142.15,142.12,3.11953495]
[1763375640502,2.16,142.2,142.14,3.14]
[1763375640707,1.95371184,142.21,142.15,1.95371184]
[1763375641007,2.16,142.21,142.16,3.14]
[1763375641506,2.16,142.21,142.15,8.29011184]
[1763375641507,0.04461039,142.2,142.18,3.14]
[1763375642303,2.16,142.25,142.19,5.09371184]
[1763375642504,1.95371184,142.26,142.2,3.14]
[1763375643005,2.16,142.25,142.2,3.14]
[1763375643207,2.16,142.23,142.21,0.05014197]
[1763375643413,2.16,142.23,142.21,3.19014197]
[1763375643609,2.00461614,142.24,142.21,3.19014197]
[1763375643805,4.16461614,142.24,142.21,3.19014197]
[1763375644311,2.2109043,142.24,142.21,3.19014197]
[1763375645508,2.2109043,142.24,142.21,0.05014197]
[1763375645509,2.16,142.22,142.21,0.05014197]
[1763375648114,0.0509043,142.24,142.21,0.05014197]
[1763375648320,2.16,142.23,142.21,3.19014197]
[1763375649211,2.2109043,142.24,142.21,3.19014197]
[1763375649419,0.0509043,142.24,142.21,3.19014197]
[1763375653320,4.16461614,142.24,142.21,3.19014197]
[1763375653624,2.16,142.23,142.21,3.19014197]
[1763375656229,4.16461614,142.24,142.21,3.19014197]
[1763375656631,2.16,142.23,142.21,0.05014197]
[1763375656827,4.11371184,142.22,142.21,0.05014197]
[1763375669441,2.14,142.21,142.15,3.31]
[1763375669642,2.14,142.18,142.15,3.31]
[1763375670542,2.14,142.16,142.15,0.04470136]
[1763375674145,4.09371184,142.17,142.15,0.04470136]
[1763375674345,1.95371184,142.17,142.15,3.35470136]
[1763375674941,2.14,142.22,142.15,3.35470136]
[1763375675146,4.09371184,142.22,142.16,3.31]
[1763375675343,1.95371184,142.24,142.16,3.31]
[1763375675544,1.95371184,142.24,142.15,1.9984132]
[1763375675545,1.95371184,142.24,142.19,3.31]
[1763375676050,0.05065099,142.23,142.21,3.31]
[1763375676247,0.04617463,142.23,142.21,3.35683685]
[1763375680144,1.95371184,142.28,142.21,3.35683685]
[1763375680946,2.14,142.27,142.21,3.35683685]
[1763375681255,2.19300399,142.25,142.21,3.35683685]
[1763375681450,2.19300399,142.25,142.22,0.05090231]
[1763375682054,2.19300399,142.25,142.22,3.36090231]
[1763375682444,2.14,142.23,142.22,0.05090231]
[1763375685055,1.95371184,142.24,142.22,0.05090231]
[1763375685256,4.09371184,142.24,142.22,0.05090231]
[1763375686050,2.14,142.24,142.22,0.05090231]
[1763375699268,2.16,142.24,142.22,0.05090231]
[1763375702458,2.16,142.24,142.22,3.38090231]
[1763375703163,0.05300399,142.25,142.22,3.38090231]
[1763375703464,2.21300399,142.25,142.22,3.38090231]
[1763375703765,0.05300399,142.25,142.22,3.38090231]
[1763375704164,2.21300399,142.25,142.22,3.38090231]
[1763375705870,2.21300399,142.25,142.22,0.05090231]
[1763375706072,2.16,142.24,142.22,0.05090231]
[1763375708369,2.16,142.24,142.15,6.56758469]
[1763375708559,2.16,142.21,142.16,3.33]
[1763375709163,2.16,142.19,142.16,3.33]
[1763375709672,2.21130542,142.19,142.16,3.38260132]
[1763375713677,0.05130542,142.19,142.16,3.38260132]
[1763375713976,2.21130542,142.19,142.16,3.38260132]
[1763375714674,0.05130542,142.19,142.16,3.38260132]
[1763375717782,0.05130542,142.19,142.16,9.71860132]
[1763375717979,0.05130542,142.19,142.17,3.31]
[1763375720985,2.17,142.26,142.18,3.31]
[1763375721490,2.17,142.26,142.21,3.31]
[1763375721787,2.21304733,142.25,142.22,3.27334483]
[1763375732699,0.05304733,142.25,142.22,3.27334483]
[1763375749214,0.05304733,142.25,142.22,9.60674483]
[1763375749408,0.05304733,142.25,142.23,3.22]
[1763375759418,0.05304733,142.25,142.23,9.5528]
[1763375759611,0.05304733,142.25,142.23,3.22]
[1763375762118,2.21304733,142.25,142.23,3.22]
[1763375762318,0.05304733,142.25,142.23,3.22]
[1763375762823,2.21304733,142.25,142.23,3.22]
[1763375763026,0.05304733,142.25,142.23,3.22]
[1763375763525,2.21304733,142.25,142.23,3.22]
[1763375763711,2.21304733,142.25,142.22,0.05334483]
[1763375763915,2.16,142.23,142.22,0.05334483]
[1763375765925,0.05304733,142.25,142.22,3.19334483]
[1763375766114,2.21304733,142.25,142.22,3.19334483]
[1763375767826,2.16,142.23,142.22,0.05334483]
[1763375769728,2.16,142.24,142.22,3.19334483]
[1763375770219,2.16,142.24,142.22,0.05334483]
[1763375772721,0.05304733,142.25,142.22,3.19334483]
[1763375773124,0.05304733,142.25,142.23,3.14]
[1763375775927,2.16,142.3,142.25,3.14]
[1763375777028,0.05426695,142.29,142.27,3.14]
[1763375777228,2.21426695,142.29,142.27,3.14]
[1763375779928,0.05426695,142.29,142.27,3.14]
[1763375780528,0.05426695,142.29,142.27,9.4711]
[1763375780734,0.05426695,142.29,142.28,3.27]
[1763375785436,2.14,142.33,142.28,3.27]
[1763375785636,2.14,142.33,142.29,3.1]
[1763375786433,0.04737058,142.32,142.29,3.1]
[1763375786640,2.18737058,142.32,142.3,3.14605521]
[1763375788438,2.18737058,142.32,142.3,0.04605521]
[1763375788632,4.13779142,142.32,142.3,0.04605521]
[1763375788939,2.14,142.31,142.24,3.1]
[1763375789839,2.14,142.28,142.26,0.05395982]
[1763375790837,2.14,142.28,142.26,3.15395982]
[1763375794242,0.04748614,142.29,142.26,3.15395982]
[1763375794443,2.18748614,142.29,142.26,3.15395982]
[1763375795140,0.04748614,142.29,142.26,3.15395982]
[1763375805149,2.18748614,142.29,142.26,3.15395982]
[1763375807563,2.18748614,142.29,142.26,0.05395982]
[1763375809058,2.18748614,142.29,142.26,3.15395982]
[1763375812449,0.04748614,142.29,142.26,3.15395982]
[1763375813147,2.21748614,142.29,142.26,3.15395982]
[1763375813455,0.04748614,142.29,142.26,3.15395982]
[1763375814162,0.04748614,142.29,142.27,3.2]
[1763375836070,2.21748614,142.29,142.27,3.2]
[1763375836269,2.21748614,142.29,142.26,0.05395982]
[1763375836270,2.21748614,142.29,142.26,3.25395982]
[1763375837478,0.04748614,142.29,142.26,3.25395982]
[1763375838078,0.04748614,142.29,142.28,3.33]
[1763375843577,0.04748614,142.29,142.28,9.6607]
[1763375843780,2.21,142.37,142.29,3.34]
[1763375843978,2.21,142.37,142.31,3.34]
[1763375844682,0.04851017,142.35,142.34,3.34]
[1763375845683,2.25851017,142.35,142.33,0.05385238]
[1763375845984,2.25851017,142.35,142.33,3.39385238]
[1763375846980,0.04851017,142.35,142.33,3.39385238]
[1763375847573,0.04851017,142.35,142.33,9.72225238]
[1763375847781,0.04851017,142.35,142.34,3.34]
[1763375848988,2.21,142.4,142.34,3.34]
[1763375862800,2.21,142.4,142.33,0.05385238]
[1763375863191,2.21,142.38,142.33,3.39385238]
[1763375863398,2.21,142.36,142.34,0.04987918]
[1763375863601,2.21,142.34,142.28,3.34]
[1763375863800,2.21,142.32,142.28,3.34]
[1763375864595,0.04825198,142.31,142.29,0.04672194]
[1763375864799,2.25825198,142.31,142.29,0.04672194]
[1763375874698,5.30462776,142.31,142.29,0.04672194]
[1763375875203,2.22,142.3,142.29,0.04672194]
[1763375875595,0.04825198,142.31,142.29,3.28672194]
[1763375876095,2.26825198,142.31,142.29,3.28672194]
[1763375876700,2.26825198,142.31,142.29,0.04672194]
[1763375876897,4.21812963,142.31,142.29,0.04672194]
[1763375877198,1.99812963,142.31,142.29,0.04672194]
[1763375877399,2.22,142.3,142.29,0.04672194]
[1763375878407,2.22,142.3,142.25,3.24]
[1763375878604,4.16987765,142.28,142.22,1.94987765]
[1763375879408,0.05259624,142.26,142.24,3.29180155]
[1763375880407,2.27259624,142.26,142.24,3.29180155]
[1763375880710,4.22247389,142.26,142.24,0.05180155]
[1763375880901,2.22,142.25,142.24,0.05180155]
[1763375881096,2.22,142.25,142.2,3.24]
[1763375881300,2.22,142.23,142.2,3.24]
[1763375881806,2.22,142.23,142.17,3.24]
[1763375882204,2.2699718,142.21,142.19,0.04563935]
[1763375883705,1.94987765,142.2,142.19,0.04563935]
[1763375883908,4.16987765,142.2,142.19,0.04563935]
[1763375884394,2.22,142.19,142.14,3.24]
[1763375885404,0.04776503,142.18,142.15,0.04982016]
[1763375885605,0.04776503,142.18,142.15,3.28982016]
[1763375885805,2.26776503,142.18,142.15,3.28982016]
[1763375886211,0.04776503,142.18,142.17,3.24]
[1763375888113,2.26776503,142.18,142.15,3.28982016]
[1763375888517,2.26776503,142.18,142.15,0.04982016]
[1763375888906,1.94987765,142.17,142.15,0.04982016]
[1763375889108,4.16987765,142.17,142.15,0.04982016]
[1763375889406,2.22,142.17,142.15,0.04982016]
[1763375889602,0.04776503,142.18,142.15,3.28982016]
[1763375893620,0.04776503,142.18,142.17,3.24]
[1763375893916,2.26776503,142.18,142.16,1.94987765]
[1763375895513,2.26776503,142.18,142.15,0.04982016]
[1763375895719,2.26776503,142.18,142.15,3.28982016]
[1763375895918,2.26776503,142.18,142.15,0.04982016]
[1763375896317,0.04776503,142.18,142.17,3.24]
[1763375899422,0.04776503,142.18,142.16,1.94987765]
[1763375899622,0.04776503,142.18,142.16,4.97987765]
[1763375900117,0.04776503,142.18,142.17,3.03]
[1763375901422,2.24776503,142.18,142.16,5.28987765]
[1763375901721,2.24776503,142.18,142.16,3.34]
[1763375901911,0.04776503,142.18,142.16,3.34]
[1763375902115,2.24776503,142.18,142.16,3.34]
[1763375902311,2.24776503,142.18,142.15,0.04982016]
[1763375904028,2.24776503,142.18,142.15,3.38982016]
[1763375904620,0.04776503,142.18,142.15,5.33969781]
[1763375904926,0.04776503,142.18,142.16,3.34]
[1763375912132,0.04776503,142.18,142.17,3.34]
[1763375924142,2.24776503,142.18,142.15,3.38982016]
[1763375924837,2.2,142.17,142.15,0.04982016]
[1763375925041,2.2,142.15,142.12,3.34]
[1763375925948,2.25395247,142.15,142.12,3.38678668]
[1763375926247,4.14987765,142.14,142.12,3.38678668]
[1763375926440,2.2,142.13,142.12,0.04678668]
[1763375926637,4.14987765,142.14,142.12,0.04678668]
[1763375927147,2.2,142.14,142.12,0.04678668]
[1763375927447,2.2,142.14,142.12,3.38678668]
[1763375929251,2.2,142.14,142.12,0.04678668]
[1763375929448,2.2,142.14,142.12,3.38678668]
[1763375930651,4.20383012,142.15,142.12,3.38678668]
[1763375930948,2.00383012,142.15,142.12,3.38678668]
[1763375933248,4.22383012,142.15,142.12,3.38678668]
[1763375934753,2.00383012,142.15,142.12,3.38678668]
[1763375934947,0.05395247,142.15,142.12,3.38678668]
[1763375935141,2.27395247,142.15,142.12,3.38678668]
[1763375936748,0.05395247,142.15,142.12,3.38678668]
[1763375938452,2.27395247,142.15,142.12,3.38678668]
[1763375938654,2.27395247,142.15,142.12,0.04678668]
[1763375939249,2.27395247,142.15,142.12,3.36678668]
[1763375940255,0.05395247,142.15,142.12,3.36678668]
[1763375941149,2.27395247,142.15,142.12,0.04678668]
[1763375941651,5.3276208,142.15,142.12,0.04678668]
[1763375941850,2.22,142.14,142.12,0.04678668]
[1763375942147,2.22,142.14,142.12,3.36678668]
[1763375942351,2.27395247,142.15,142.12,3.36678668]
[1763375942654,2.27395247,142.15,142.12,0.04678668]
[1763375943049,2.27395247,142.15,142.12,3.36678668]
[1763375943249,2.27395247,142.15,142.12,0.04678668]
[1763375943450,2.22,142.14,142.12,0.04678668]
[1763375948458,2.22,142.14,142.12,3.36678668]
[1763375950856,0.05395247,142.15,142.12,3.36678668]
[1763375951261,2.22,142.2,142.13,3.32]
[1763375952353,0.04443092,142.18,142.16,3.32]
[1763375963668,2.26443092,142.18,142.16,3.32]
[1763375964671,0.04443092,142.18,142.16,3.32]
[1763375965070,2.26443092,142.18,142.16,3.32]
[1763375969371,0.04443092,142.18,142.16,3.32]
[1763375982179,2.26443092,142.18,142.16,3.32]
[1763375982481,0.04443092,142.18,142.16,3.32]
[1763376000398,2.19,142.17,142.15,0.05297449]
[1763376000604,0.04443092,142.18,142.15,3.22297449]
[1763376001404,1.99719181,142.18,142.15,3.22297449]
[1763376004605,0.04443092,142.18,142.15,3.22297449]
[1763376005105,4.14276089,142.25,142.18,3.17]
[1763376005500,4.19276089,142.23,142.18,3.17]
[1763376005708,2.24,142.22,142.18,3.17]
[1763376005907,0.04743165,142.21,142.2,3.17]
[1763376008512,2.00019254,142.21,142.2,3.17]
[1763376010205,0.04743165,142.21,142.2,3.17]
[1763376018615,2.00019254,142.21,142.2,3.17]
[1763376026524,0.04743165,142.21,142.2,3.17]
[1763376034217,2.00019254,142.21,142.2,3.17]
[1763376035108,4.26019254,142.21,142.19,0.04446946]
[1763376035313,4.26019254,142.21,142.19,3.32446946]
[1763376036008,2.00019254,142.21,142.19,3.32446946]
[1763376036719,2.26,142.2,142.19,0.04446946]
[1763376067748,2.26,142.2,142.14,3.27]
[1763376067951,2.23,142.16,142.07,3.27]
[1763376068451,2.23,142.14,142.07,3.27]
[1763376068847,0.05295254,142.12,142.1,3.27]
[1763376080164,0.05295254,142.12,142.1,9.6087]
[1763376080473,0.05295254,142.12,142.11,3.2]
[1763376082064,0.05295254,142.12,142.11,9.5383]
[1763376083373,7.047,142.19,142.14,3.27]
[1763376083672,2.26,142.19,142.14,3.27]
[1763376084469,2.26,142.19,142.1,6.56474058]
[1763376084470,2.30919009,142.18,142.16,3.27]
[1763376084669,0.04919009,142.18,142.16,3.27]
[1763376086272,2.30919009,142.18,142.16,3.27]
[1763376089472,2.30919009,142.18,142.15,0.05001121]
[1763376094380,2.30919009,142.18,142.15,3.32001121]
[1763376096281,0.04919009,142.18,142.15,3.32001121]
[1763376096482,2.30919009,142.18,142.15,3.32001121]
[1763376120805,4.26254546,142.18,142.15,3.32001121]
[1763376120999,2.26,142.17,142.15,3.32001121]
[1763376124303,6.62939562,142.18,142.15,3.32001121]
[1763376124504,0.04919009,142.18,142.15,3.32001121]
[1763376124808,0.04919009,142.18,142.16,3.09]
[1763376125208,6.58020553,142.22,142.16,3.09]
[1763376125507,6.58020553,142.22,142.17,3.09]
[1763376125708,8.5335609,142.23,142.17,3.09]
[1763376126207,0.04616855,142.21,142.19,0.05171356]
[1763376126395,0.04616855,142.21,142.2,3.09]
[1763376128802,2.26,142.2,142.19,0.05171356]
[1763376129801,75.72,142.2,142.19,0.05171356]
[1763376132906,82.30020553,142.2,142.19,0.05171356]
[1763376135208,2.26,142.19,142.14,3.09]
[1763376135404,2.26,142.16,142.14,3.09]
[1763376135713,4.21335537,142.17,142.14,3.09]
[1763376136314,4.26337076,142.17,142.14,3.13462428]
[1763376137319,0.05001539,142.17,142.14,3.13462428]
[1763376146332,2.00337076,142.17,142.14,3.13462428]